[Event "Chessity Nationale Pupillendag 2019 - Groep F"]
[Site "Meppel, Netherlands"]
[Date "2019.06.29"]
[Round "2.6"]
[White "Aubel, Daan"]
[Black "Ilin, Anatoli"]
[Result "1-0"]
[TimeControl "15 min + 10 sec"]
[WhiteElo "859"]
[BlackElo "581"]

1. e4 {[%clk 00:15:19]} {[%emt 00:00:01]} e5 {[%clk 00:15:16]} {[%emt
00:00:04]} 2. Nf3 {[%clk 00:15:27]} {[%emt 00:00:02]} Nc6 {[%clk 00:15:22]}
{[%emt 00:00:04]} 3. Bb5 {[%clk 00:15:34]} {[%emt 00:00:03]} Be7 {[%clk
00:15:21]} {[%emt 00:00:12]} 4. d3 {[%clk 00:15:33]} {[%emt 00:00:11]} Nf6
{[%clk 00:15:27]} {[%emt 00:00:03]} 5. Nbd2 {[%clk 00:15:39]} {[%emt 00:00:04]}
O-O {[%clk 00:15:34]} {[%emt 00:00:02]} 6. Bxc6 {[%clk 00:15:47]} dxc6 {[%clk
00:15:41]} {[%emt 00:00:06]} 7. Nxe5 {[%clk 00:15:53]} Bd6 {[%clk 00:15:35]}
{[%emt 00:00:20]} 8. Nef3 {[%clk 00:15:59]} Bg4 {[%clk 00:15:39]} {[%emt
00:00:10]} 9. h3 {[%clk 00:16:05]} Bxf3 {[%clk 00:15:40]} {[%emt 00:00:13]} 10.
Nxf3 {[%clk 00:16:12]} Be7 {[%clk 00:15:25]} {[%emt 00:00:28]} 11. O-O {[%clk
00:16:17]} Ne8 {[%clk 00:15:29]} {[%emt 00:00:11]} 12. Be3 {[%clk 00:16:16]} b5
{[%clk 00:15:23]} {[%emt 00:00:27]} 13. Qd2 {[%clk 00:16:06]} Rb8 {[%clk
00:15:06]} {[%emt 00:00:46]} 14. Qc3 {[%clk 00:16:06]} Bf6 {[%clk 00:14:43]}
{[%emt 00:00:43]} 15. e5 {[%clk 00:15:52]} {[%emt 00:00:24]} Be7 {[%clk
00:14:36]} {[%emt 00:00:17]} 16. a3 {[%clk 00:15:33]} {[%emt 00:00:29]} Qd7
{[%clk 00:14:22]} {[%emt 00:00:24]} 17. Nd4 {[%clk 00:15:38]} {[%emt 00:00:05]}
c5 {[%clk 00:14:23]} {[%emt 00:00:09]} 18. Nf3 {[%clk 00:15:41]} {[%emt
00:00:07]} Qc6 {[%clk 00:13:58]} {[%emt 00:00:33]} 19. d4 {[%clk 00:14:54]}
{[%emt 00:00:59]} c4 {[%clk 00:13:47]} {[%emt 00:00:22]} 20. Rab1 {[%clk
00:14:34]} {[%emt 00:00:30]} b4 {[%clk 00:13:42]} {[%emt 00:00:14]} 21. Qd2
{[%clk 00:14:19]} {[%emt 00:00:25]} bxa3 {[%clk 00:13:36]} {[%emt 00:00:16]} 22.
bxa3 {[%clk 00:14:25]} {[%emt 00:00:05]} Rxb1 {[%clk 00:13:37]} {[%emt
00:00:08]} 23. Rxb1 {[%clk 00:14:33]} {[%emt 00:00:03]} Bxa3 {[%clk 00:13:12]}
{[%emt 00:00:35]} 24. Ra1 {[%clk 00:14:32]} Bb2 {[%clk 00:12:57]} {[%emt
00:00:35]} 25. Rxa7 {[%clk 00:14:21]} Qb6 {[%clk 00:12:36]} {[%emt 00:00:48]}
26. d5 {[%clk 00:14:27]} c3 {[%clk 00:12:18]} {[%emt 00:00:36]} 27. Qd3 {[%clk
00:14:15]} Qg6 {[%clk 00:12:15]} {[%emt 00:00:32]} 28. Qxg6 {[%clk 00:13:38]}
hxg6 {[%clk 00:12:22]} {[%emt 00:00:52]} 29. Bc5 {[%clk 00:13:18]} Nd6 {[%clk
00:12:19]} {[%emt 00:00:45]} 30. exd6 {[%clk 00:13:23]} cxd6 {[%clk 00:12:24]}
{[%emt 00:00:09]} 31. Bxd6 {[%clk 00:13:22]} Rd8 {[%clk 00:12:23]} {[%emt
00:00:22]} 32. Bb4 {[%clk 00:13:08]} Rxd5 {[%clk 00:12:17]} {[%emt 00:00:42]}
33. Rc7 {[%clk 00:12:49]} Bc1 {[%clk 00:11:38]} {[%emt 00:01:14]} 34. Rxc3
{[%clk 00:12:25]} Bf4 {[%clk 00:11:44]} {[%emt 00:00:40]} 35. Rd3 {[%clk
00:12:18]} Rb5 {[%clk 00:11:29]} {[%emt 00:00:40]} 36. Bc3 {[%clk 00:12:19]}
Rb1+ {[%clk 00:11:30]} {[%emt 00:00:20]} 37. Ne1 {[%clk 00:12:07]} f5 {[%clk
00:11:05]} {[%emt 00:00:57]} 38. g3 {[%clk 00:12:08]} {[%emt 00:00:09]} Bc7
{[%clk 00:11:01]} {[%emt 00:00:13]} 39. Kg2 {[%clk 00:12:06]} {[%emt 00:00:13]}
Rb6 {[%clk 00:10:43]} {[%emt 00:00:27]} 40. Ba5 {[%clk 00:12:03]} {[%emt
00:00:13]} Rc6 {[%clk 00:10:43]} {[%emt 00:00:10]} 41. Bxc7 {[%clk 00:12:02]}
{[%emt 00:00:11]} Rxc7 {[%clk 00:10:50]} {[%emt 00:00:03]} 42. Kf3 {[%clk
00:12:03]} {[%emt 00:00:09]} g5 {[%clk 00:10:49]} {[%emt 00:00:11]} 43. Ke3
{[%clk 00:11:57]} {[%emt 00:00:17]} Re7+ {[%clk 00:10:52]} {[%emt 00:00:06]} 44.
Kd2 {[%clk 00:12:05]} {[%emt 00:00:02]} f4 {[%clk 00:10:53]} {[%emt 00:00:09]}
45. Nf3 {[%clk 00:12:06]} {[%emt 00:00:09]} fxg3 {[%clk 00:10:58]} {[%emt
00:00:05]} 46. fxg3 {[%clk 00:12:14]} {[%emt 00:00:01]} g4 {[%clk 00:10:46]}
{[%emt 00:00:23]} 47. hxg4 {[%clk 00:12:15]} {[%emt 00:00:07]} Rf7 {[%clk
00:10:39]} {[%emt 00:00:19]} 48. c4 {[%clk 00:12:06]} {[%emt 00:00:19]} Rb7
{[%clk 00:10:03]} {[%emt 00:00:45]} 49. Rc3 {[%clk 00:12:11]} {[%emt 00:00:05]}
Rb2+ {[%clk 00:10:00]} {[%emt 00:00:13]} 50. Ke3 {[%clk 00:12:18]} {[%emt
00:00:04]} Rg2 {[%clk 00:09:58]} {[%emt 00:00:11]} 51. Kf4 {[%clk 00:12:26]}
{[%emt 00:00:02]} Re2 {[%clk 00:09:37]} {[%emt 00:00:30]} 52. c5 {[%clk
00:12:20]} {[%emt 00:00:17]} Re8 {[%clk 00:09:36]} {[%emt 00:00:11]} 53. c6
{[%clk 00:12:26]} {[%emt 00:00:04]} Rf8+ {[%clk 00:09:44]} {[%emt 00:00:02]} 54.
Ke3 {[%clk 00:12:34]} {[%emt 00:00:01]} Rc8 {[%clk 00:09:49]} {[%emt 00:00:05]}
55. c7 {[%clk 00:12:41]} {[%emt 00:00:03]} Kf7 {[%clk 00:09:58]} {[%emt
00:00:02]} 56. Kd4 {[%clk 00:12:28]} {[%emt 00:00:21]} Ke6 {[%clk 00:09:56]}
{[%emt 00:00:12]} 57. Ne5 {[%clk 00:12:24]} {[%emt 00:00:14]} Kd6 {[%clk
00:09:50]} {[%emt 00:00:07]} 58. Rc6+ {[%clk 00:12:27]} {[%emt 00:00:16]} Ke7
{[%clk 00:09:51]} {[%emt 00:00:08]} 59. Kd5 {[%clk 00:12:27]} {[%emt 00:00:10]}
g5 {[%clk 00:09:00]} {[%emt 00:01:02]} 60. Rc5 {[%clk 00:12:25]} {[%emt
00:00:13]} Rxc7 {[%clk 00:08:48]} {[%emt 00:00:21]} 61. Rxc7+ {[%clk 00:12:24]}
{[%emt 00:00:11]} Kf6 {[%clk 00:08:56]} {[%emt 00:00:02]} 62. Rf7+ {[%emt
00:00:05]} 1-0

[Event "Chessity Nationale Pupillendag 2019 - Groep F"]
[Site "Meppel, Netherlands"]
[Date "2019.06.29"]
[Round "3.1"]
[White "Grooten, Tommy"]
[Black "Van Rijn, Vincent"]
[Result "1-0"]
[TimeControl "15 min + 10 sec"]
[WhiteElo "1318"]
[BlackElo "779"]

1. e4 {[%clk 00:15:19]} e5 {[%clk 00:15:20]} 2. Nf3 {[%clk 00:15:27]} {[%emt
00:00:02]} Nf6 {[%clk 00:15:29]} 3. Nxe5 {[%clk 00:15:35]} {[%emt 00:00:02]}
Qe7 {[%clk 00:15:38]} 4. d4 {[%clk 00:15:38]} {[%emt 00:00:07]} d6 {[%clk
00:15:48]} 5. Nf3 {[%clk 00:15:44]} {[%emt 00:00:05]} Nxe4 {[%clk 00:15:55]}
{[%emt 00:00:03]} 6. Be2 {[%clk 00:15:50]} {[%emt 00:00:04]} d5 {[%clk
00:15:50]} {[%emt 00:00:15]} 7. Nbd2 {[%clk 00:15:52]} {[%emt 00:00:08]} Bf5
{[%clk 00:15:16]} {[%emt 00:00:44]} 8. Nxe4 {[%clk 00:15:59]} {[%emt 00:00:03]}
Bxe4 {[%clk 00:15:24]} {[%emt 00:00:02]} 9. Be3 {[%clk 00:16:05]} {[%emt
00:00:05]} Qb4+ {[%clk 00:15:10]} {[%emt 00:00:24]} 10. Nd2 {[%clk 00:15:47]}
{[%emt 00:00:28]} Qxb2 {[%clk 00:14:50]} {[%emt 00:00:30]} 11. Nxe4 {[%clk
00:15:52]} {[%emt 00:00:04]} dxe4 {[%clk 00:14:52]} {[%emt 00:00:09]} 12. Rb1
{[%clk 00:15:48]} {[%emt 00:00:14]} Qxa2 {[%clk 00:14:40]} {[%emt 00:00:21]} 13.
Rxb7 {[%clk 00:15:56]} {[%emt 00:00:03]} Qa5+ {[%clk 00:14:46]} {[%emt
00:00:04]} 14. Bd2 {[%clk 00:16:02]} {[%emt 00:00:03]} Qd5 {[%clk 00:14:15]}
{[%emt 00:00:42]} 15. Rxc7 {[%clk 00:16:00]} {[%emt 00:00:12]} Nc6 {[%clk
00:13:35]} {[%emt 00:00:49]} 16. c4 {[%clk 00:14:41]} {[%emt 00:01:29]} Qd6
{[%clk 00:13:35]} {[%emt 00:00:10]} 17. Rb7 {[%clk 00:14:48]} {[%emt 00:00:04]}
Rb8 {[%clk 00:13:39]} {[%emt 00:00:06]} 18. Rxb8+ {[%clk 00:14:47]} {[%emt
00:00:11]} Qxb8 {[%clk 00:13:45]} {[%emt 00:00:03]} 19. Qa4 {[%clk 00:14:46]}
{[%emt 00:00:10]} Qc7 {[%clk 00:13:12]} {[%emt 00:00:43]} 20. d5 {[%clk
00:14:43]} {[%emt 00:00:04]} Bc5 {[%clk 00:13:14]} {[%emt 00:00:08]} 21. Qxc6+
{[%clk 00:14:57]} {[%emt 00:00:06]} Qxc6 {[%clk 00:13:22]} {[%emt 00:00:02]} 22.
dxc6 {[%clk 00:15:06]} O-O {[%clk 00:13:28]} {[%emt 00:00:03]} 23. O-O {[%clk
00:15:14]} {[%emt 00:00:03]} Rc8 {[%clk 00:13:24]} {[%emt 00:00:13]} 24. Rb1
{[%clk 00:15:18]} {[%emt 00:00:05]} Bb6 {[%clk 00:13:10]} {[%emt 00:00:26]} 25.
c5 {[%clk 00:15:17]} {[%emt 00:00:10]} Bxc5 {[%clk 00:13:03]} {[%emt 00:00:17]}
26. c7 {[%clk 00:15:19]} {[%emt 00:00:08]} Bb6 {[%clk 00:12:57]} {[%emt
00:00:16]} 27. Bf4 {[%clk 00:15:27]} {[%emt 00:00:02]} h6 {[%clk 00:12:21]}
{[%emt 00:00:46]} 28. Bg4 {[%clk 00:15:26]} {[%emt 00:00:11]} Bxc7 {[%clk
00:11:55]} {[%emt 00:00:37]} 29. Bxc8 {[%clk 00:15:31]} {[%emt 00:00:06]} Bxf4
{[%clk 00:11:59]} {[%emt 00:00:05]} 30. g3 {[%clk 00:15:38]} {[%emt 00:00:03]}
Bd6 {[%clk 00:12:02]} {[%emt 00:00:07]} 31. Bf5 {[%clk 00:15:47]} {[%emt
00:00:02]} g6 {[%clk 00:12:09]} {[%emt 00:00:03]} 32. Bxe4 {[%clk 00:15:55]}
{[%emt 00:00:02]} f5 {[%emt 00:00:02]} 33. Bd5+ {[%emt 00:00:01]} Kg7 {[%clk
00:12:23]} {[%emt 00:00:03]} 34. Rb7+ {[%clk 00:16:14]} Kf6 {[%clk 00:12:31]}
{[%emt 00:00:03]} 35. Rxa7 {[%clk 00:16:23]} {[%emt 00:00:02]} Bc5 {[%clk
00:12:35]} {[%emt 00:00:05]} 36. Ra6+ {[%clk 00:16:32]} {[%emt 00:00:02]} Ke5
{[%clk 00:12:44]} 37. Bc4 {[%clk 00:16:39]} {[%emt 00:00:03]} Kd4 {[%clk
00:12:34]} {[%emt 00:00:20]} 38. Bb3 {[%clk 00:16:48]} {[%emt 00:00:01]} Kc3
{[%clk 00:12:38]} {[%emt 00:00:06]} 39. Rc6 {[%clk 00:16:57]} {[%emt 00:00:01]}
Kd4 {[%clk 00:12:42]} {[%emt 00:00:06]} 40. Rxg6 {[%clk 00:17:04]} {[%emt
00:00:03]} Ke4 {[%clk 00:12:50]} {[%emt 00:00:02]} 41. Re6+ {[%clk 00:17:12]}
{[%emt 00:00:02]} Kf3 {[%clk 00:12:53]} {[%emt 00:00:07]} 42. Bd1# {[%emt
00:00:05]} 1-0

[Event "Chessity Nationale Pupillendag 2019 - Groep F"]
[Site "Meppel, Netherlands"]
[Date "2019.06.29"]
[Round "3.3"]
[White "Witlox, Floris"]
[Black "Pereira Garza, Cecilia"]
[Result "0-1"]
[TimeControl "15 min + 10 sec"]
[WhiteElo "675"]
[BlackElo "929"]

1. e4 {[%clk 00:15:18]} e6 {[%clk 00:15:17]} {[%emt 00:00:03]} 2. Nf3 {[%clk
00:15:25]} {[%emt 00:00:04]} d5 {[%clk 00:15:23]} {[%emt 00:00:04]} 3. exd5
{[%clk 00:15:31]} {[%emt 00:00:05]} exd5 {[%clk 00:15:27]} {[%emt 00:00:05]} 4.
g3 {[%clk 00:15:30]} {[%emt 00:00:10]} Nf6 {[%clk 00:15:24]} {[%emt 00:00:13]}
5. Bg2 {[%clk 00:15:38]} {[%emt 00:00:03]} Bd6 {[%clk 00:15:20]} {[%emt
00:00:14]} 6. O-O {[%clk 00:15:01]} {[%emt 00:00:05]} O-O {[%clk 00:15:22]}
{[%emt 00:00:49]} 7. Nc3 {[%clk 00:15:08]} {[%emt 00:00:04]} Bb4 {[%clk
00:15:17]} {[%emt 00:00:14]} 8. Re1 {[%clk 00:15:06]} {[%emt 00:00:12]} Nc6
{[%clk 00:15:16]} {[%emt 00:00:11]} 9. d4 {[%clk 00:14:59]} {[%emt 00:00:17]}
Bg4 {[%clk 00:15:12]} {[%emt 00:00:15]} 10. a3 {[%clk 00:15:01]} {[%emt
00:00:08]} Bxc3 {[%clk 00:15:09]} {[%emt 00:00:12]} 11. bxc3 {[%clk 00:15:08]}
{[%emt 00:00:02]} Re8 {[%clk 00:14:55]} {[%emt 00:00:25]} 12. Bg5 {[%clk
00:14:58]} {[%emt 00:00:18]} Rxe1+ {[%clk 00:14:15]} {[%emt 00:00:52]} 13. Qxe1
{[%clk 00:15:05]} {[%emt 00:00:03]} h6 {[%clk 00:14:18]} {[%emt 00:00:07]} 14.
Bxf6 {[%clk 00:15:09]} {[%emt 00:00:05]} Qxf6 {[%clk 00:14:18]} {[%emt
00:00:10]} 15. Qe2 {[%clk 00:15:12]} {[%emt 00:00:07]} Kf8 {[%clk 00:14:06]}
{[%emt 00:00:23]} 16. h3 {[%clk 00:15:17]} Bxf3 {[%clk 00:13:59]} {[%emt
00:00:22]} 17. Bxf3 {[%clk 00:15:21]} Re8 {[%clk 00:13:58]} {[%emt 00:00:17]}
18. Qd1 {[%clk 00:15:18]} Re6 {[%clk 00:13:31]} {[%emt 00:00:51]} 19. Bxd5
{[%clk 00:15:19]} Rd6 {[%clk 00:13:25]} {[%emt 00:00:25]} 20. Qf3 {[%clk
00:15:09]} Qe7 {[%clk 00:12:51]} {[%emt 00:01:04]} 21. c4 {[%clk 00:15:08]}
Nxd4 {[%clk 00:12:50]} {[%emt 00:00:22]} 22. Qe4 {[%clk 00:14:48]} Qxe4 {[%clk
00:12:32]} {[%emt 00:00:57]} 23. Bxe4 {[%clk 00:14:53]} b6 {[%clk 00:12:38]}
{[%emt 00:00:10]} 24. Rd1 {[%clk 00:14:54]} c5 {[%clk 00:12:45]} {[%emt
00:00:12]} 25. Kf1 {[%clk 00:14:59]} Re6 {[%clk 00:12:27]} {[%emt 00:00:32]} 26.
Bf5 {[%clk 00:14:37]} Nxf5 {[%clk 00:12:29]} {[%emt 00:00:39]} 27. g4 {[%clk
00:14:34]} Nd4 {[%clk 00:12:35]} {[%emt 00:00:18]} 28. c3 {[%clk 00:14:38]} Nc2
{[%clk 00:12:35]} {[%emt 00:00:16]} 29. f4 {[%clk 00:14:39]} Ne3+ {[%clk
00:12:37]} {[%emt 00:00:16]} 30. Ke2 {[%clk 00:14:46]} Nxg4+ {[%clk 00:12:45]}
31. hxg4 {[%clk 00:14:55]} Re3+ {[%clk 00:12:49]} {[%emt 00:00:07]} 0-1

[Event "Chessity Nationale Pupillendag 2019 - Groep F"]
[Site "Meppel, Netherlands"]
[Date "2019.06.29"]
[Round "3.4"]
[White "Koorevaar, Sarah-Joy"]
[Black "Aubel, Daan"]
[Result "1-0"]
[TimeControl "15 min + 10 sec"]
[WhiteElo "648"]
[BlackElo "859"]

1. e4 {[%clk 00:15:19]} {[%emt 00:04:46]} c5 {[%clk 00:15:19]} {[%emt
00:00:01]} 2. Nf3 {[%clk 00:15:28]} {[%emt 00:00:02]} e6 {[%clk 00:15:24]}
{[%emt 00:00:05]} 3. d4 {[%clk 00:15:33]} {[%emt 00:00:05]} cxd4 {[%clk
00:15:32]} {[%emt 00:00:03]} 4. Nxd4 {[%clk 00:15:20]} {[%emt 00:00:23]} Nf6
{[%clk 00:15:38]} {[%emt 00:00:03]} 5. Nc3 {[%clk 00:15:28]} {[%emt 00:00:02]}
d6 {[%clk 00:15:45]} {[%emt 00:00:03]} 6. Bg5 {[%clk 00:15:33]} {[%emt
00:00:05]} Be7 {[%clk 00:15:53]} {[%emt 00:00:03]} 7. Bb5+ {[%clk 00:15:37]}
{[%emt 00:00:05]} Bd7 {[%clk 00:15:57]} {[%emt 00:00:06]} 8. Bxf6 {[%clk
00:15:31]} {[%emt 00:00:16]} Bxf6 {[%clk 00:16:03]} {[%emt 00:00:04]} 9. Bxd7+
{[%clk 00:15:35]} {[%emt 00:00:06]} Nxd7 {[%clk 00:16:08]} {[%emt 00:00:05]} 10.
O-O {[%clk 00:15:39]} {[%emt 00:00:06]} Nc5 {[%clk 00:16:02]} {[%emt 00:00:16]}
11. b4 {[%clk 00:15:34]} {[%emt 00:00:15]} Nd7 {[%clk 00:15:58]} {[%emt
00:00:14]} 12. Ncb5 {[%clk 00:15:38]} {[%emt 00:00:07]} Qb6 {[%clk 00:15:10]}
{[%emt 00:00:58]} 13. a4 {[%clk 00:15:32]} {[%emt 00:00:17]} Bxd4 {[%clk
00:15:09]} {[%emt 00:00:10]} 14. Nxd4 {[%clk 00:15:24]} {[%emt 00:00:18]} Qxb4
{[%clk 00:14:46]} {[%emt 00:00:33]} 15. Nb5 {[%clk 00:15:26]} {[%emt 00:00:08]}
O-O {[%clk 00:14:43]} {[%emt 00:00:13]} 16. Nxd6 {[%clk 00:15:30]} {[%emt
00:00:06]} Rfd8 {[%clk 00:14:38]} {[%emt 00:00:15]} 17. c4 {[%clk 00:15:17]}
{[%emt 00:00:23]} Nc5 {[%clk 00:14:00]} {[%emt 00:00:48]} 18. Rb1 {[%clk
00:15:09]} {[%emt 00:00:18]} Qc3 {[%clk 00:12:51]} {[%emt 00:01:19]} 19. Qe2
{[%clk 00:14:37]} {[%emt 00:00:39]} Rxd6 {[%clk 00:12:31]} {[%emt 00:00:33]} 20.
e5 {[%clk 00:14:35]} {[%emt 00:00:12]} Rdd8 {[%clk 00:12:29]} {[%emt 00:00:12]}
21. Rfc1 {[%clk 00:14:34]} {[%emt 00:00:12]} Qd4 {[%clk 00:11:53]} {[%emt
00:00:46]} 22. Rd1 {[%clk 00:13:55]} {[%emt 00:00:48]} Qf4 {[%clk 00:11:54]}
{[%emt 00:00:08]} 23. g3 {[%clk 00:13:41]} {[%emt 00:00:25]} Qg5 {[%clk
00:11:59]} {[%emt 00:00:05]} 24. h4 {[%clk 00:13:25]} {[%emt 00:00:26]} Qe7
{[%clk 00:12:05]} {[%emt 00:00:04]} 25. Rb5 {[%clk 00:12:48]} {[%emt 00:00:47]}
b6 {[%clk 00:12:02]} {[%emt 00:00:14]} 26. Rb2 {[%clk 00:12:18]} {[%emt
00:00:40]} Nxa4 {[%clk 00:12:00]} {[%emt 00:00:12]} 27. Ra2 {[%clk 00:12:06]}
{[%emt 00:00:21]} Rxd1+ {[%clk 00:12:01]} {[%emt 00:00:10]} 28. Qxd1 {[%clk
00:12:09]} {[%emt 00:00:07]} Nc3 {[%clk 00:12:09]} {[%emt 00:00:01]} 29. Qf3
{[%clk 00:12:02]} {[%emt 00:00:15]} Nxa2 {[%clk 00:11:56]} {[%emt 00:00:25]} 30.
Qxa8+ {[%clk 00:12:09]} {[%emt 00:00:03]} Qf8 {[%clk 00:12:04]} {[%emt
00:00:02]} 31. Qxa7 {[%clk 00:12:11]} {[%emt 00:00:08]} Nc3 {[%clk 00:11:56]}
{[%emt 00:00:18]} 32. Qxb6 {[%clk 00:12:13]} {[%emt 00:00:09]} h6 {[%clk
00:12:02]} {[%emt 00:00:05]} 33. c5 {[%clk 00:12:19]} {[%emt 00:00:05]} Qc8
{[%clk 00:12:04]} {[%emt 00:00:07]} 34. c6 {[%clk 00:12:21]} {[%emt 00:00:06]}
Nd5 {[%clk 00:12:13]} {[%emt 00:00:02]} 35. Qb7 {[%clk 00:12:20]} {[%emt
00:00:11]} Qd8 {[%clk 00:11:33]} {[%emt 00:00:50]} 36. Qd7 {[%clk 00:12:02]}
{[%emt 00:00:26]} Qb8 {[%clk 00:10:58]} {[%emt 00:00:46]} 37. Qd6 {[%clk
00:12:08]} {[%emt 00:00:04]} Nc7 {[%clk 00:09:51]} {[%emt 00:01:18]} 38. f4
{[%clk 00:11:53]} {[%emt 00:00:24]} Kh7 {[%clk 00:08:07]} {[%emt 00:01:53]} 39.
Qd7 {[%clk 00:11:29]} {[%emt 00:00:26]} Kg6 {[%clk 00:08:11]} {[%emt 00:00:15]}
40. h5+ {[%clk 00:11:21]} {[%emt 00:00:17]} Kxh5 {[%clk 00:08:10]} {[%emt
00:00:11]} 41. Qxf7+ {[%clk 00:11:29]} {[%emt 00:00:03]} g6 {[%clk 00:08:17]}
{[%emt 00:00:03]} 42. Kg2 {[%clk 00:10:33]} {[%emt 00:01:05]} Qe8 {[%clk
00:07:50]} {[%emt 00:00:38]} 43. Kh3 {[%clk 00:10:10]} {[%emt 00:00:32]} 1-0